bitfinex/quotes_BTCUSD_20230113
["timestamp","ask_amount","ask_price","bid_price","bid_amount"]
[1673646446861,3.14108004,19765.0,19763.0,0.00540394]
[1673646447132,0.8503947,19764.0,19763.0,3.94e-06]
[1673646447370,0.324162,19764.0,19763.0,3.94e-06]
[1673646447877,0.524162,19764.0,19763.0,0.006]
[1673646448129,1.5563647,19764.0,19763.0,0.006]
[1673646448629,2.0623347,19764.0,19763.0,0.006]
[1673646448881,0.830132,19764.0,19763.0,0.006]
[1673646449138,1.01190548,19764.0,19763.0,0.006]
[1673646449396,0.68799348,19764.0,19763.0,0.006]
[1673646449641,0.68774348,19764.0,19762.0,0.00550196]
[1673646449894,0.68774348,19764.0,19763.0,0.63322593]
[1673646449895,0.001,19764.0,19763.0,0.63322593]
[1673646450138,0.001,19764.0,19763.0,1.24546093]
[1673646450385,0.66249296,19765.0,19763.0,1.19646093]
[1673646450637,0.04,19764.0,19763.0,0.59022593]
[1673646450885,0.66249296,19765.0,19763.0,1.09022193]
[1673646451128,0.50881948,19764.0,19762.0,0.00550196]
[1673646451387,0.68232121,19764.0,19763.0,0.049]
[1673646451663,0.2,19763.0,19762.0,0.00550196]
[1673646451906,0.87269466,19763.0,19762.0,0.00550196]
[1673646452153,0.67269466,19763.0,19762.0,0.1089698]
[1673646452403,0.68132121,19764.0,19762.0,0.1089698]
[1673646452647,0.003,19764.0,19763.0,0.139]
[1673646452911,0.60750157,19766.0,19763.0,0.106241]
[1673646453162,0.60750157,19766.0,19763.0,1.22229694]
[1673646453403,0.70287973,19765.0,19763.0,1.01171982]
[1673646453649,0.04,19764.0,19763.0,1.01171982]
[1673646453894,0.51856562,19766.0,19763.0,1.11795582]
[1673646454142,0.55756562,19766.0,19763.0,1.02171982]
[1673646454392,0.039,19766.0,19764.0,0.61653494]
[1673646454652,0.039,19766.0,19765.0,1.92813694]
[1673646454896,0.039,19766.0,19765.0,2.33435994]
[1673646455143,0.57402513,19771.0,19765.0,2.93435994]
[1673646455395,0.50563,19778.0,19768.0,0.1223]
[1673646455397,0.69804292,19773.0,19768.0,0.1223]
[1673646455646,0.69804292,19773.0,19769.0,1.83398394]
[1673646455889,0.01599933,19780.0,19770.0,0.51030494]
[1673646456134,0.01599933,19780.0,19773.0,1.01148]
[1673646456382,0.56324976,19779.0,19774.0,0.51030494]
[1673646456636,0.56324976,19779.0,19775.0,1.83346794]
[1673646456888,0.56324976,19779.0,19776.0,0.51030494]
[1673646457126,0.01599933,19780.0,19777.0,1.32770094]
[1673646457369,0.01599933,19780.0,19778.0,0.21030494]
[1673646457617,0.01599933,19780.0,19779.0,1.10144712]
[1673646458117,0.02,19783.0,19779.0,1.61175206]
[1673646458118,0.01730196,19783.0,19779.0,1.61175206]
[1673646458360,0.01730196,19783.0,19780.0,0.63240494]
[1673646458621,0.66910265,19788.0,19781.0,1.91163794]
[1673646458867,0.66910265,19788.0,19782.0,0.51030494]
[1673646459112,0.66910265,19788.0,19783.0,1.81694094]
[1673646459361,0.65295037,19785.0,19783.0,1.72669694]
[1673646459612,0.5655674,19787.0,19784.0,0.090236]
[1673646459859,0.20044,19791.0,19785.0,1.010866]
[1673646460114,0.20044,19792.0,19786.0,0.30053094]
[1673646460358,0.54273552,19791.0,19787.0,0.71567194]
[1673646460603,0.19922,19794.0,19787.0,0.71567194]
[1673646460855,0.19922,19794.0,19788.0,0.21030494]
[1673646460856,0.5262327,19790.0,19788.0,0.21030494]
[1673646461138,0.5262327,19790.0,19784.0,0.505448]
[1673646461139,0.20740774,19787.0,19784.0,0.505448]
[1673646461379,0.59166643,19786.0,19784.0,0.475448]
[1673646461630,0.20740774,19787.0,19785.0,0.090231]
[1673646461877,0.01669643,19786.0,19785.0,0.21030494]
[1673646462130,0.01669643,19786.0,19785.0,0.595663]
[1673646462380,0.01669643,19786.0,19785.0,1.41903093]
[1673646462381,0.01502679,19786.0,19785.0,1.41903093]
[1673646462632,0.45824497,19796.0,19786.0,0.01502]
[1673646462633,0.95117705,19796.0,19786.0,0.01502]
[1673646462890,0.95117705,19796.0,19789.0,2.021324]
[1673646462891,0.69281432,19796.0,19789.0,2.021324]
[1673646463150,0.69281432,19796.0,19790.0,0.60049694]
[1673646463395,0.69281432,19796.0,19791.0,1.72608194]
[1673646463643,0.69281432,19796.0,19792.0,0.60048194]
[1673646463908,0.19778,19803.0,19793.0,1.72597694]
[1673646464153,1.18536025,19805.0,19794.0,0.72206894]
[1673646464154,0.64696273,19800.0,19794.0,0.72206894]
[1673646464401,1.18536025,19805.0,19794.0,0.72206894]
[1673646464402,0.60249271,19803.0,19797.0,0.1214]
[1673646464650,1.18536025,19805.0,19799.0,1.515195]
[1673646464651,0.63426449,19802.0,19799.0,1.515195]
[1673646464902,1.37912025,19805.0,19797.0,0.71542094]
[1673646464903,0.5044157,19801.0,19797.0,0.71542094]
[1673646465157,0.00022782,19801.0,19796.0,0.505139]
[1673646465401,0.00022782,19801.0,19795.0,0.505176]
[1673646465402,0.52646052,19801.0,19795.0,0.505176]
[1673646465646,0.52646052,19801.0,19793.0,1.010451]
[1673646465647,0.8503927,19800.0,19793.0,1.010451]
[1673646465897,0.51700353,19801.0,19796.0,0.0320679]
[1673646465898,1.70145602,19801.0,19796.0,0.0320679]
[1673646466148,1.70145602,19801.0,19797.0,0.79466083]
[1673646466149,0.65844761,19801.0,19797.0,0.79466083]
[1673646466395,0.65825564,19803.0,19797.0,0.79466083]
[1673646466396,0.53407062,19803.0,19800.0,0.68912717]
[1673646466645,0.63718264,19801.0,19800.0,1.19415817]
[1673646466898,1.18536025,19805.0,19800.0,1.78932317]
[1673646467141,1.18536025,19805.0,19801.0,0.21030494]
[1673646467386,1.18536025,19805.0,19802.0,1.31039494]
[1673646467655,1.18536025,19805.0,19803.0,0.60596894]
[1673646467909,1.18536025,19805.0,19803.0,0.504952]
[1673646467910,0.69745031,19804.0,19803.0,0.504952]
[1673646468163,1.18558807,19805.0,19802.0,0.504987]
[1673646468411,1.18558807,19805.0,19799.0,0.505066]
[1673646468412,0.2,19803.0,19799.0,0.505066]
[1673646468654,0.136249,19802.0,19799.0,0.505066]
[1673646468957,0.2,19803.0,19799.0,0.505066]
[1673646469211,0.32416,19802.0,19796.0,0.495128]
[1673646469454,0.336249,19801.0,19796.0,0.495128]
[1673646469697,0.2,19801.0,19796.0,0.495128]
[1673646470264,0.7262327,19801.0,19796.0,0.495128]
[1673646470528,0.61175751,19800.0,19797.0,0.21030494]
[1673646470764,0.19,19801.0,19798.0,1.010202]
[1673646470765,0.60229659,19801.0,19798.0,1.010202]
[1673646471076,0.65100564,19805.0,19799.0,0.090126]
[1673646471264,0.18855,19806.0,19800.0,0.21030494]
[1673646471265,0.59933514,19803.0,19800.0,0.21030494]
[1673646471510,0.59933514,19803.0,19800.0,1.22036494]
[1673646471776,0.18855,19806.0,19801.0,0.30041294]
[1673646471777,0.5680859,19806.0,19801.0,0.30041294]
[1673646472019,0.61200796,19804.0,19803.0,1.009926]
[1673646472269,0.18663,19807.0,19802.0,0.504989]
[1673646472520,0.70531762,19803.0,19802.0,0.504989]
[1673646472778,0.00022782,19803.0,19801.0,0.505022]
[1673646473030,0.00022782,19803.0,19799.0,0.505054]
[1673646473603,0.50520482,19803.0,19796.0,0.505138]
[1673646473852,0.46449564,19802.0,19801.0,0.02597496]
[1673646474094,0.51855534,19803.0,19801.0,0.02597496]
[1673646474348,0.5262327,19803.0,19801.0,0.02597496]
[1673646474588,0.78728535,19802.0,19801.0,0.00451936]
[1673646474836,1.0503927,19802.0,19796.0,0.505138]
[1673646475091,0.82855571,19801.0,19794.0,0.50518]
[1673646475339,0.2,19799.0,19794.0,0.50518]
[1673646475590,0.32416,19798.0,19794.0,0.50518]
[1673646475842,0.7262327,19799.0,19794.0,0.50518]
[1673646476331,0.32416,19798.0,19794.0,0.71548494]
[1673646476578,0.88756174,19799.0,19794.0,0.50518]
[1673646476827,0.8503927,19798.0,19792.0,0.505246]
[1673646477082,0.6624817,19797.0,19791.0,0.94954221]
[1673646477323,0.2,19795.0,19791.0,0.94954221]
[1673646477816,0.68792413,19797.0,19792.0,0.70577449]
[1673646478065,0.58143683,19797.0,19792.0,0.68555294]
[1673646478310,0.70346778,19796.0,19792.0,0.68555294]
[1673646478558,0.70346778,19796.0,19793.0,0.6639527]
[1673646478559,0.54605613,19796.0,19793.0,0.6639527]
[1673646478806,0.54605613,19796.0,19794.0,0.505203]
[1673646479049,0.54605613,19796.0,19794.0,0.500203]
[1673646479294,0.59134884,19799.0,19795.0,0.2]
[1673646479545,0.664095,19798.0,19796.0,1.31073194]
[1673646479800,0.51642397,19797.0,19796.0,1.010273]
[1673646480302,0.53395172,19801.0,19797.0,0.2]
[1673646480549,0.68212225,19800.0,19798.0,0.80553694]
[1673646480789,0.68212225,19800.0,19798.0,1.24052622]
[1673646481048,0.68212225,19800.0,19798.0,1.03022128]
[1673646481542,0.68235007,19800.0,19798.0,0.505096]
[1673646481791,0.00022782,19800.0,19797.0,0.505109]
[1673646482039,0.05543195,19800.0,19797.0,0.505109]
[1673646482285,0.00022782,19800.0,19797.0,0.505109]
[1673646482533,0.84657838,19803.0,19797.0,0.505109]
[1673646482783,0.510689,19803.0,19798.0,0.81396702]
[1673646483023,0.510689,19803.0,19799.0,1.81561994]
[1673646483272,0.510689,19803.0,19799.0,2.38350427]
[1673646483522,0.510689,19803.0,19800.0,0.44155914]
[1673646483773,0.65101382,19802.0,19800.0,0.21007488]
[1673646484015,0.65101382,19802.0,19800.0,0.50505]
[1673646484016,0.650786,19802.0,19800.0,0.50505]
[1673646484262,0.650786,19802.0,19799.0,0.96445251]
[1673646484748,0.650786,19802.0,19800.0,0.505046]
[1673646484990,0.65101382,19802.0,19800.0,1.010096]
[1673646485249,0.05566201,19802.0,19798.0,0.505088]
[1673646485494,0.05543419,19801.0,19798.0,0.505088]
[1673646485746,0.05543419,19801.0,19797.0,0.505102]
[1673646485990,0.5262327,19800.0,19795.0,0.655171]
[1673646486334,0.5262327,19800.0,19795.0,0.15]
[1673646486335,0.2,19798.0,19795.0,0.15]
[1673646486577,0.2,19798.0,19792.0,1.0445318]
[1673646486578,0.37982201,19797.0,19792.0,1.0445318]
[1673646486826,0.37982201,19797.0,19790.0,0.50972203]
[1673646486827,0.72651129,19797.0,19790.0,0.50972203]
[1673646487079,1.10908422,19796.0,19790.0,0.44610544]
[1673646487319,2.09265504,19795.0,19788.0,0.6737353]
[1673646487576,1.07131816,19794.0,19789.0,0.31791777]
[1673646487830,0.21256227,19796.0,19789.0,0.31791777]
[1673646487831,0.05228007,19796.0,19790.0,0.505292]
[1673646488083,0.05543419,19795.0,19790.0,1.27332745]
[1673646488332,0.17462,19797.0,19790.0,0.55773051]
[1673646488333,0.05543419,19794.0,19790.0,0.55773051]
[1673646488608,0.05543419,19793.0,19787.0,0.505372]
[1673646488855,0.90582689,19792.0,19785.0,0.505417]
[1673646489097,0.90582689,19792.0,19786.0,0.68987923]
[1673646489098,0.05543419,19791.0,19786.0,0.68987923]
[1673646489345,0.05543419,19790.0,19786.0,0.68987923]
[1673646490074,0.05543419,19790.0,19786.0,1.19528323]
[1673646490324,0.64746727,19792.0,19787.0,0.60462729]
[1673646490567,1.22913416,19792.0,19787.0,0.72471923]
[1673646491297,0.6333764,19792.0,19788.0,0.21030494]
[1673646491533,0.82160509,19793.0,19788.0,0.21030494]
[1673646491782,0.2,19791.0,19788.0,0.21030494]
[1673646492039,0.05566201,19790.0,19785.0,0.505409]
[1673646492305,0.05566201,19790.0,19784.0,0.505457]
[1673646492306,0.32416,19789.0,19784.0,1.02189067]
[1673646492556,0.32416,19789.0,19783.0,0.66025849]
[1673646492557,1.72865389,19788.0,19783.0,0.00479049]
[1673646492804,0.45556734,19789.0,19781.0,1.00369443]
[1673646492805,0.32416,19787.0,19781.0,0.505526]
[1673646493056,0.136249,19786.0,19782.0,1.08877197]
[1673646493297,0.44919547,19787.0,19782.0,1.08877197]
[1673646493550,0.505389,19787.0,19782.0,0.58326597]
[1673646493798,0.505389,19787.0,19780.0,0.505558]
[1673646493799,0.58166689,19786.0,19780.0,0.505558]
[1673646494051,0.90582689,19785.0,19780.0,0.29797161]
[1673646494285,1.1616664,19784.0,19780.0,0.29797161]
[1673646494533,0.25543419,19784.0,19780.0,0.29797161]
[1673646494768,0.83643501,19784.0,19780.0,0.29797161]
[1673646495042,0.05543419,19783.0,19779.0,0.50557]
[1673646495292,0.32416,19782.0,19778.0,0.96992227]
[1673646495535,0.32416,19782.0,19777.0,0.03804106]
[1673646495536,0.05036045,19781.0,19777.0,0.03804106]
[1673646495776,0.05036045,19780.0,19777.0,0.03804106]
[1673646496022,0.05036045,19780.0,19776.0,0.505662]
[1673646496023,0.00022782,19779.0,19776.0,1.17450913]
[1673646496303,0.05052827,19779.0,19776.0,1.14450913]
[1673646496795,0.97187505,19781.0,19777.0,0.78977151]
[1673646496796,0.66751672,19781.0,19777.0,0.78977151]
[1673646497045,0.44570051,19782.0,19779.0,0.01752952]
[1673646497046,0.63092966,19780.0,19779.0,0.01752952]
[1673646497535,0.63092966,19780.0,19779.0,0.12076952]
[1673646497779,0.63092966,19780.0,19779.0,0.12088242]
[1673646498028,0.63092966,19780.0,19779.0,0.52322842]
[1673646498273,0.64212856,19781.0,19779.0,0.61350542]
[1673646498525,0.64229638,19781.0,19779.0,0.52322842]
[1673646498811,0.64212856,19781.0,19779.0,0.52322842]
[1673646499302,0.64212856,19781.0,19779.0,0.01752952]
[1673646499303,0.05036045,19781.0,19779.0,0.01752952]
[1673646499543,1.15239274,19783.0,19779.0,0.01752952]
[1673646499544,0.4470246,19782.0,19779.0,0.01752952]
[1673646499798,1.84522693,19783.0,19779.0,0.01752952]
[1673646500052,0.2,19780.0,19779.0,0.01752952]
[1673646500300,0.336249,19780.0,19779.0,0.01752952]
[1673646500549,0.52416,19780.0,19776.0,0.50129552]
[1673646500793,0.136249,19779.0,19776.0,0.50129552]
[1673646501038,0.05036045,19779.0,19776.0,0.50129552]
[1673646501549,0.05036045,19779.0,19775.0,0.505684]
[1673646502052,0.2,19778.0,19775.0,0.505684]
[1673646502301,5.0,19781.0,19776.0,0.84311799]
[1673646502550,4.99938,19781.0,19777.0,1.72718094]
[1673646502801,4.99938,19781.0,19778.0,0.51019123]
[1673646503055,4.99938,19781.0,19779.0,0.505586]
[1673646503056,0.55577042,19780.0,19779.0,0.505586]
[1673646503297,0.55593824,19780.0,19778.0,0.505591]
[1673646503543,0.5705106,19780.0,19775.0,1.16570491]
[1673646503800,1.01809727,19780.0,19777.0,0.505635]
[1673646504043,4.99938,19781.0,19777.0,0.505635]
[1673646504044,4.99938,19781.0,19779.0,0.2]
[1673646504313,3.6196537,19781.0,19780.0,1.81726094]
[1673646504570,0.52663425,19787.0,19780.0,2.62281894]
[1673646504826,0.46062149,19791.0,19781.0,1.1837536]
[1673646505071,0.46062149,19791.0,19784.0,1.516374]
[1673646505072,0.61423522,19788.0,19784.0,1.516374]
[1673646505313,0.21548416,19791.0,19784.0,1.72667894]
[1673646505314,0.05047416,19790.0,19784.0,1.72667894]
[1673646505601,0.77279585,19791.0,19785.0,0.30053494]
[1673646505840,0.77279585,19791.0,19786.0,0.71569194]
[1673646505841,0.50839866,19788.0,19786.0,0.71569194]
[1673646506112,0.50839866,19788.0,19787.0,0.090215]
[1673646506360,0.37077,19794.0,19787.0,1.31128394]
[1673646506361,0.46253965,19794.0,19787.0,1.31128394]
[1673646506603,0.46253965,19794.0,19788.0,0.30050794]
[1673646506604,0.6074844,19790.0,19788.0,0.30050794]
[1673646506858,0.6074844,19790.0,19789.0,1.515993]
[1673646507103,0.6074844,19790.0,19789.0,2.106195]
[1673646507359,0.16326,19796.0,19789.0,2.106195]
[1673646507608,0.16326,19796.0,19790.0,0.60049294]
[1673646507609,0.69685505,19794.0,19790.0,0.60049294]
[1673646507846,0.69685505,19794.0,19791.0,1.010518]
[1673646508116,0.69685505,19794.0,19792.0,0.30048394]
[1673646508361,0.61902028,19794.0,19792.0,0.3]
[1673646508604,0.61902028,19794.0,19793.0,1.605859]
[1673646508856,0.61902028,19794.0,19793.0,1.10063]
[1673646509102,0.61902028,19794.0,19793.0,1.60063]
[1673646509103,0.01664577,19794.0,19793.0,1.60063]
[1673646509843,0.01664577,19794.0,19793.0,1.57905147]
[1673646510099,0.06728775,19794.0,19793.0,1.07905147]
[1673646510344,0.06728775,19794.0,19793.0,1.82412114]
[1673646510345,0.01664577,19794.0,19793.0,1.82412114]
[1673646510590,0.01664577,19794.0,19793.0,2.02412114]
[1673646511580,0.01664577,19794.0,19793.0,1.57905147]
[1673646512081,0.0149812,19794.0,19793.0,1.57905147]
[1673646512327,2e-07,19794.0,19793.0,2.04428674]
[1673646512604,0.58019765,19800.0,19793.0,1.57905147]
[1673646512843,0.06778201,19800.0,19795.0,0.1527]
[1673646513087,0.06778201,19800.0,19796.0,1.81586894]
[1673646513088,0.56873505,19799.0,19796.0,1.81586894]
[1673646513343,0.56873505,19799.0,19797.0,0.00015516]
[1673646513588,0.56873505,19799.0,19798.0,1.100337]
[1673646513838,0.56873505,19799.0,19798.0,0.605438]
[1673646514325,0.01730785,19800.0,19798.0,0.605438]
[1673646514575,0.01730785,19800.0,19798.0,0.96884294]
[1673646514860,0.01730785,19800.0,19799.0,0.3]
[1673646514861,0.01430785,19800.0,19799.0,0.3]
[1673646515117,0.01430785,19800.0,19799.0,0.505076]
[1673646515361,0.01430785,19800.0,19799.0,1.43759453]
[1673646515608,0.01430785,19800.0,19799.0,1.38481487]
[1673646516111,0.01430785,19800.0,19799.0,0.505076]
[1673646516353,0.52762124,19800.0,19799.0,0.505076]
[1673646516850,0.01430785,19800.0,19799.0,1.14453733]
[1673646517347,0.01430785,19800.0,19799.0,1.9052236]
[1673646517607,0.01710514,19803.0,19799.0,1.42045694]
[1673646517853,0.01710514,19803.0,19802.0,0.1531]
[1673646518103,0.01710514,19803.0,19802.0,2.68340094]
[1673646518348,0.01710514,19803.0,19802.0,2.473096]
[1673646518598,0.01710514,19803.0,19802.0,2.68340094]
[1673646518599,1.4e-07,19803.0,19802.0,2.68340094]
[1673646518865,0.02223071,19808.0,19803.0,0.2]
[1673646519114,0.02223071,19808.0,19806.0,0.1531]
[1673646519410,0.02223071,19808.0,19807.0,1.72492094]
[1673646519662,0.02223071,19808.0,19807.0,2.02492094]
[1673646519913,0.01675657,19809.0,19808.0,0.2]
[1673646520172,0.01675657,19809.0,19808.0,0.86220494]
[1673646520452,0.01622677,19814.0,19809.0,0.2]
[1673646520689,0.01622677,19814.0,19813.0,0.1523]
[1673646520933,0.01622677,19814.0,19813.0,1.87676194]
[1673646521181,0.01622677,19814.0,19813.0,1.666457]
[1673646521432,0.01622677,19814.0,19813.0,1.94886982]
[1673646521695,0.01622677,19814.0,19813.0,1.64913194]
[1673646521942,0.0184118,19820.0,19813.0,2.35943688]
[1673646522198,0.70100463,19818.0,19817.0,0.1531]
[1673646522439,0.70100463,19818.0,19815.0,0.1531]
[1673646522685,0.70100463,19818.0,19817.0,1.009234]
[1673646522686,0.05047416,19818.0,19817.0,1.009234]
[1673646522933,0.2184118,19820.0,19815.0,0.504654]
[1673646523197,0.26888596,19820.0,19815.0,1.21462194]
[1673646523445,0.51228069,19819.0,19815.0,1.21462194]
[1673646523714,0.0184118,19820.0,19816.0,0.36300494]
[1673646523971,0.0184118,19820.0,19817.0,1.92414094]
[1673646524213,0.0184118,19820.0,19819.0,0.1523]
[1673646524461,0.0184118,19820.0,19819.0,1.87630294]
[1673646524699,0.0184118,19820.0,19819.0,2.165998]
[1673646525201,0.0184118,19820.0,19819.0,1.965998]
[1673646525944,0.0184118,19820.0,19819.0,2.51804454]
[1673646526184,0.0184118,19820.0,19819.0,1.965998]
[1673646526964,0.0184118,19820.0,19819.0,2.56259562]
[1673646526965,0.06888596,19820.0,19819.0,2.56259562]
[1673646527220,0.0184118,19820.0,19819.0,1.513698]
[1673646527481,0.54042956,19820.0,19819.0,1.513698]
[1673646527728,0.0184118,19820.0,19819.0,1.009132]
[1673646528012,0.0184118,19820.0,19817.0,0.504612]
[1673646528013,0.17193378,19820.0,19817.0,0.504612]
[1673646528287,0.71390014,19820.0,19817.0,0.504612]
[1673646528507,0.66390014,19820.0,19817.0,0.504612]
[1673646528785,0.05047416,19820.0,19819.0,0.5]
[1673646529017,0.2,19822.0,19816.0,0.504627]
[1673646529261,0.67758231,19819.0,19816.0,0.71493194]
[1673646529513,0.72805647,19819.0,19816.0,0.9668317]
[1673646529722,0.67758231,19819.0,19816.0,0.9668317]
[1673646530000,0.67758231,19819.0,19816.0,0.504627]
[1673646530001,0.05047416,19819.0,19816.0,0.504627]
[1673646530492,0.57029657,19819.0,19816.0,0.50464]
[1673646531223,0.56529657,19819.0,19816.0,0.50464]
[1673646531473,0.56529657,19819.0,19816.0,1.38156654]
[1673646531725,0.2,19822.0,19817.0,0.01005607]
[1673646531971,0.64836594,19821.0,19818.0,0.71489194]
[1673646532219,0.83465733,19822.0,19819.0,0.21030494]
[1673646532463,0.63465733,19822.0,19820.0,1.00908]
[1673646532738,0.17521537,19826.0,19821.0,0.41030494]
[1673646532739,0.01806537,19826.0,19821.0,0.41030494]
[1673646532997,0.01806537,19826.0,19822.0,0.504483]
[1673646532998,0.70705014,19823.0,19822.0,0.504483]
[1673646533259,0.70705014,19823.0,19815.0,0.504661]
[1673646533260,0.49769901,19820.0,19815.0,0.504661]
[1673646533522,1.17670686,19819.0,19814.0,0.00187814]
[1673646533775,0.49769901,19820.0,19814.0,0.45965876]
[1673646533776,1.10084186,19818.0,19814.0,0.45965876]
[1673646534015,0.37460916,19817.0,19814.0,0.96434676]
[1673646534263,0.05047416,19816.0,19814.0,0.45965876]
[1673646534513,0.05047416,19816.0,19814.0,0.00187814]
[1673646534770,0.2,19818.0,19814.0,0.00187814]
[1673646535042,0.25047416,19818.0,19814.0,0.00187814]
[1673646535291,0.77670686,19818.0,19814.0,0.00187814]
[1673646535547,0.1531,19816.0,19814.0,0.00187814]
[1673646535825,0.1531,19816.0,19814.0,7.814e-05]
[1673646535826,0.9526457,19815.0,19814.0,7.814e-05]
[1673646536055,0.9526457,19815.0,19813.0,0.00422185]
[1673646536056,0.2,19814.0,19813.0,0.00422185]
[1673646536304,1.86152548,19814.0,19813.0,1.85e-06]
[1673646536548,1.86152548,19814.0,19806.0,0.504886]
[1673646536549,1.2034677,19814.0,19806.0,0.504886]
[1673646536818,1.27816214,19813.0,19806.0,0.504886]
[1673646537058,0.90084186,19812.0,19805.0,1.07819705]
[1673646537316,0.72980686,19811.0,19805.0,0.504901]
[1673646537559,1.08350704,19814.0,19811.0,0.01749708]
[1673646537560,0.56432255,19814.0,19811.0,0.01749708]
[1673646537823,0.56432255,19814.0,19812.0,0.21030494]
[1673646538092,0.2,19818.0,19811.0,0.21030494]
[1673646538352,1.46005,19819.0,19811.0,1.34314116]
[1673646538353,0.70263266,19815.0,19811.0,1.34314116]
[1673646538603,0.61814259,19816.0,19811.0,0.71505994]
[1673646538885,0.70218997,19815.0,19812.0,0.66228665]
[1673646539372,0.70218997,19815.0,19812.0,1.16702065]
[1673646539863,0.58340839,19814.0,19812.0,1.16702065]
[1673646540622,0.57979901,19821.0,19813.0,0.51030494]
[1673646540897,0.5683944,19824.0,19816.0,0.1523]
[1673646541126,0.01806537,19826.0,19817.0,0.21030494]
[1673646541378,0.53583422,19825.0,19818.0,1.72404794]
[1673646541621,0.03579291,19826.0,19819.0,0.71030494]
[1673646541866,0.51673942,19826.0,19821.0,1.009024]
[1673646542111,0.51673942,19826.0,19822.0,0.21030494]
[1673646542365,0.51673942,19826.0,19823.0,0.21030494]
[1673646542611,0.51673942,19826.0,19823.0,0.71476894]
[1673646542853,0.51673942,19826.0,19821.0,0.504512]
[1673646542854,0.59927202,19826.0,19821.0,0.504512]
[1673646543103,0.37960395,19825.0,19820.0,0.504532]
[1673646543351,0.37960395,19825.0,19816.0,0.504629]
[1673646543352,1.56337765,19824.0,19816.0,0.504629]
[1673646543597,1.56337765,19824.0,19816.0,1.37362111]
[1673646543598,1.48250468,19823.0,19816.0,1.37362111]
[1673646543840,0.37960395,19822.0,19816.0,0.71494294]
[1673646544089,0.70605518,19824.0,19817.0,0.21030494]
[1673646544334,0.01757037,19826.0,19817.0,0.21030494]
[1673646544335,0.01757037,19826.0,19817.0,0.1531]
[1673646544585,0.01757037,19826.0,19820.0,0.3527]
[1673646544848,0.01757037,19826.0,19819.0,0.97960528]
[1673646544849,0.3473,19820.0,19819.0,0.97960528]
[1673646545098,0.3473,19820.0,19819.0,2.170961]
[1673646545346,0.3473,19820.0,19819.0,2.17138248]
[1673646545854,0.01757037,19826.0,19819.0,2.77138248]
[1673646546103,0.01757037,19826.0,19820.0,1.02775838]
[1673646546357,0.05546895,19825.0,19821.0,2.17922]
[1673646546597,0.01757037,19826.0,19822.0,0.2]
[1673646546838,0.01757037,19826.0,19823.0,1.72368194]
[1673646547096,0.01757037,19826.0,19824.0,0.3]
[1673646547340,0.01757037,19826.0,19825.0,1.665539]
[1673646547589,0.01757037,19826.0,19825.0,2.165539]
[1673646548076,0.16113,19834.0,19825.0,2.165539]
[1673646548077,0.01916525,19836.0,19826.0,0.521938]
[1673646548325,0.01916525,19836.0,19831.0,0.1433886]
[1673646548571,0.01916525,19836.0,19832.0,1.92081594]
[1673646548818,0.01916525,19836.0,19833.0,0.51030494]
[1673646549070,0.6121096,19835.0,19834.0,1.008368]
[1673646549317,0.6121096,19835.0,19834.0,0.48590187]
[1673646549566,0.01916525,19836.0,19834.0,0.48590187]
[1673646549823,0.65438366,19836.0,19834.0,0.48590187]
[1673646550075,0.54539795,19836.0,19832.0,0.15]
[1673646550318,0.54539795,19836.0,19828.0,0.504323]
[1673646550319,0.38175895,19835.0,19828.0,0.504323]
[1673646550572,1.10299165,19834.0,19828.0,0.91144241]
[1673646550814,1.10299165,19834.0,19827.0,0.93356202]
[1673646550815,0.38175895,19833.0,19827.0,0.93356202]
[1673646551060,0.05762395,19832.0,19827.0,0.93356202]
[1673646551328,0.05762395,19832.0,19825.0,0.654398]
[1673646551329,0.1531,19831.0,19825.0,0.654398]
[1673646551589,0.25762395,19830.0,19826.0,0.56982751]
[1673646551834,0.25762395,19830.0,19826.0,0.504376]
[1673646552078,0.64934596,19829.0,19826.0,0.504376]
[1673646552334,0.60764222,19832.0,19827.0,0.55505346]
[1673646552582,0.69061554,19831.0,19828.0,0.71462894]
[1673646552830,0.69061554,19831.0,19828.0,0.504324]
[1673646553820,0.05762395,19832.0,19826.0,0.504376]
[1673646553821,0.54701339,19829.0,19826.0,0.504376]
[1673646554063,0.60463734,19829.0,19826.0,0.504376]
[1673646554310,0.1820174,19832.0,19823.0,0.504458]
[1673646554311,0.05762395,19828.0,19823.0,0.504458]
[1673646554558,0.656872,19831.0,19822.0,0.504489]
[1673646554559,0.58385665,19827.0,19822.0,0.504489]
[1673646554811,0.58385665,19827.0,19822.0,0.85274079]
[1673646555060,0.58385665,19827.0,19821.0,0.504504]
[1673646555329,0.58385665,19827.0,19820.0,0.29507909]
[1673646555330,0.1531,19825.0,19820.0,0.29507909]
[1673646555569,0.1531,19825.0,19820.0,0.14507909]
[1673646555570,0.1531,19823.0,19820.0,0.14507909]
[1673646555816,0.81026965,19822.0,19820.0,0.14507909]
[1673646556058,0.1531,19823.0,19820.0,0.14507909]
[1673646556059,0.38175895,19821.0,19820.0,0.14507909]
[1673646556324,0.38175895,19821.0,19815.0,0.64005709]
[1673646556325,0.14499091,19820.0,19815.0,0.64005709]
[1673646556572,0.14499091,19820.0,19814.0,0.06444015]
[1673646556573,0.1522,19818.0,19814.0,0.06444015]
[1673646556822,0.38175895,19817.0,19814.0,0.06444015]
[1673646557069,0.05762395,19817.0,19814.0,0.06444015]
[1673646557339,0.55014599,19818.0,19815.0,0.61172154]
[1673646557584,0.55014599,19818.0,19815.0,0.60046531]
[1673646557831,0.55014599,19818.0,19814.0,0.56912915]
[1673646557832,0.61866611,19816.0,19814.0,0.92429748]
[1673646558081,0.67629006,19816.0,19814.0,0.41960848]
[1673646558332,0.59366611,19816.0,19814.0,0.41960848]
[1673646559343,0.59366611,19816.0,19814.0,0.06444015]
[1673646559585,0.2,19815.0,19814.0,0.06444015]
[1673646560327,0.704619,19817.0,19814.0,0.50497531]
[1673646560328,0.85132082,19817.0,19814.0,0.50497531]
[1673646560570,0.85132082,19817.0,19814.0,0.71528025]
[1673646561078,0.85132082,19817.0,19814.0,0.50497531]
[1673646561347,1.017274,19821.0,19815.0,0.21030494]
[1673646561348,0.2,19821.0,19815.0,0.21030494]
[1673646561638,0.2,19821.0,19814.0,0.56913115]
[1673646561639,0.7756653,19821.0,19816.0,0.91492694]
[1673646561889,0.6692506,19821.0,19817.0,0.21030494]
[1673646562136,0.863236,19824.0,19818.0,2.02406294]
[1673646562137,0.70009493,19824.0,19818.0,2.02406294]
[1673646562384,0.70009493,19824.0,19819.0,0.41030494]
[1673646562637,0.36031,19829.0,19824.0,0.0126052]
[1673646562638,0.68536219,19825.0,19824.0,0.0126052]
[1673646562888,0.8865427,19829.0,19824.0,0.22291014]